[Event "Live Chess"]
[Site "Chess.com"]
[Date "2023.05.20"]
[Round "-"]
[White "lucaskk818"]
[Black "f4nomore"]
[Result "0-1"]
[WhiteElo "1886"]
[BlackElo "1395"]
[TimeControl "300"]
[EndTime "14:16:57 PDT"]
[Termination "f4nomore won by resignation"]

1. d4 {[%clk 0:04:58.1]} 1... g6 {[%clk 0:04:58.9]} 2. c4 {[%clk 0:04:57.7]}
2... Bg7 {[%clk 0:04:57.9]} 3. Nf3 {[%clk 0:04:57.5]} 3... d6 {[%clk 0:04:57.1]}
4. Nc3 {[%clk 0:04:55.4]} 4... Nf6 {[%clk 0:04:56]} 5. e4 {[%clk 0:04:54.9]}
5... O-O {[%clk 0:04:54.6]} 6. Be2 {[%clk 0:04:51.9]} 6... Nbd7 {[%clk
0:04:51.9]} 7. Be3 {[%clk 0:04:50.2]} 7... Ng4 {[%clk 0:04:48.8]} 8. Qd2 {[%clk
0:04:44.3]} 8... Nxe3 {[%clk 0:04:47.2]} 9. Qxe3 {[%clk 0:04:44.2]} 9... b6
{[%clk 0:04:44.8]} 10. O-O {[%clk 0:04:42.9]} 10... Bb7 {[%clk 0:04:43.7]} 11.
d5 {[%clk 0:04:42.4]} 11... c6 {[%clk 0:04:41]} 12. h3 {[%clk 0:04:37.8]} 12...
cxd5 {[%clk 0:04:39.2]} 13. exd5 {[%clk 0:04:33.8]} 13... Ne5 {[%clk 0:04:28.3]}
14. Nxe5 {[%clk 0:04:31.5]} 14... Bxe5 {[%clk 0:04:25.1]} 15. f4 {[%clk
0:04:30.8]} 15... Bg7 {[%clk 0:04:15.8]} 16. f5 {[%clk 0:04:29.7]} 16... f6
{[%clk 0:04:06.6]} 17. fxg6 {[%clk 0:04:26.7]} 17... hxg6 {[%clk 0:04:04.1]} 18.
Bg4 {[%clk 0:04:05.6]} 18... f5 {[%clk 0:04:00.8]} 19. Qe6+ {[%clk 0:03:58.8]}
19... Rf7 {[%clk 0:03:56]} 20. Ne4 {[%clk 0:03:42.8]} 20... Bc8 {[%clk
0:03:54.4]} 21. Nf6+ {[%clk 0:03:30]} 21... exf6 {[%clk 0:03:49.3]} 22. Qe2
{[%clk 0:03:25.2]} 22... fxg4 {[%clk 0:03:44.9]} 23. hxg4 {[%clk 0:03:21.9]}
23... Qf8 {[%clk 0:03:42.7]} 24. Rae1 {[%clk 0:03:16.5]} 24... f5 {[%clk
0:03:36]} 25. g5 {[%clk 0:03:13.4]} 25... Ba6 {[%clk 0:03:32.6]} 26. b3 {[%clk
0:03:11]} 26... Bd4+ {[%clk 0:03:15.3]} 27. Kh1 {[%clk 0:03:05.7]} 27... Rh7+
{[%clk 0:03:13.9]} 0-1

[Event "Live Chess"]
[Site "Chess.com"]
[Date "2023.05.20"]
[Round "-"]
[White "SupremeTactician"]
[Black "Conradical12"]
[Result "1-0"]
[WhiteElo "2364"]
[BlackElo "1582"]
[TimeControl "300"]
[EndTime "14:17:04 PDT"]
[Termination "SupremeTactician won by resignation"]

1. e4 {[%clk 0:04:58.9]} 1... e5 {[%clk 0:04:58]} 2. Nf3 {[%clk 0:04:50.3]} 2...
Nc6 {[%clk 0:04:57.3]} 3. Nc3 {[%clk 0:04:50]} 3... Nf6 {[%clk 0:04:56.3]} 4.
Bb5 {[%clk 0:04:48.6]} 4... Bb4 {[%clk 0:04:54.9]} 5. O-O {[%clk 0:04:47.4]}
5... O-O {[%clk 0:04:53.8]} 6. d3 {[%clk 0:04:46.8]} 6... d6 {[%clk 0:04:52.7]}
7. Bg5 {[%clk 0:04:45.9]} 7... Bg4 {[%clk 0:04:48.9]} 8. Nd5 {[%clk 0:04:42.9]}
8... Bxf3 {[%clk 0:04:41.5]} 9. gxf3 {[%clk 0:03:56.6]} 9... Nd4 {[%clk
0:04:33.7]} 10. c3 {[%clk 0:03:55.4]} 10... c6 {[%clk 0:04:25.5]} 11. Nxf6+
{[%clk 0:03:38.9]} 11... gxf6 {[%clk 0:04:24.1]} 12. Bh6 {[%clk 0:03:38.4]}
12... Re8 {[%clk 0:04:21.5]} 13. Ba4 {[%clk 0:03:32.7]} 13... b5 {[%clk
0:04:20]} 14. cxd4 {[%clk 0:03:15.5]} 14... bxa4 {[%clk 0:04:15.8]} 15. Qxa4
{[%clk 0:03:15.1]} 15... c5 {[%clk 0:04:12.6]} 16. a3 {[%clk 0:03:12.3]} 16...
Ba5 {[%clk 0:04:03]} 17. dxc5 {[%clk 0:03:07.9]} 17... dxc5 {[%clk 0:04:00.2]}
18. Kh1 {[%clk 0:03:05.7]} 18... Qxd3 {[%clk 0:03:56.2]} 19. Rg1+ {[%clk
0:03:03.8]} 19... Kh8 {[%clk 0:03:53.3]} 20. Bg7+ {[%clk 0:03:00.3]} 20... Kg8
{[%clk 0:03:52.3]} 21. Rg3 {[%clk 0:02:52.7]} 21... Bd2 {[%clk 0:03:43.9]} 22.
Bxf6+ {[%clk 0:02:50.3]} 22... Kf8 {[%clk 0:03:38.3]} 23. Rag1 {[%clk
0:02:48.9]} 1-0

[Event "Live Chess"]
[Site "Chess.com"]
[Date "2023.05.20"]
[Round "-"]
[White "Geomorph"]
[Black "WilliamofOrange16th"]
[Result "0-1"]
[WhiteElo "1245"]
[BlackElo "1835"]
[TimeControl "300"]
[EndTime "14:17:07 PDT"]
[Termination "WilliamofOrange16th won by resignation"]

1. e4 {[%clk 0:04:58.7]} 1... d6 {[%clk 0:04:59.3]} 2. d4 {[%clk 0:04:52.6]}
2... Nf6 {[%clk 0:04:58.7]} 3. Nc3 {[%clk 0:04:50.9]} 3... Nbd7 {[%clk
0:04:53.7]} 4. f4 {[%clk 0:04:49.3]} 4... e5 {[%clk 0:04:52.4]} 5. Be3 {[%clk
0:04:44.5]} 5... c6 {[%clk 0:04:41.8]} 6. Bd3 {[%clk 0:04:36.3]} 6... Be7 {[%clk
0:04:37.2]} 7. f5 {[%clk 0:04:24.3]} 7... O-O {[%clk 0:04:34]} 8. Nf3 {[%clk
0:04:22.3]} 8... exd4 {[%clk 0:04:33]} 9. Bxd4 {[%clk 0:04:18.9]} 9... Qc7
{[%clk 0:04:28.2]} 10. O-O {[%clk 0:04:12.6]} 10... Ne5 {[%clk 0:04:27.3]} 11.
Qd2 {[%clk 0:03:13.7]} 11... a6 {[%clk 0:04:17.3]} 12. Ng5 {[%clk 0:03:06.9]}
12... b5 {[%clk 0:04:10.6]} 13. Ne2 {[%clk 0:03:00.9]} 13... c5 {[%clk
0:04:08.3]} 14. Bf2 {[%clk 0:02:54.8]} 14... c4 {[%clk 0:04:06.8]} 15. Rac1
{[%clk 0:02:45]} 15... cxd3 {[%clk 0:04:04.8]} 16. cxd3 {[%clk 0:02:44.9]} 16...
Qd8 {[%clk 0:03:56.2]} 17. b3 {[%clk 0:02:36.6]} 17... Bb7 {[%clk 0:03:48.9]}
18. h3 {[%clk 0:02:34.1]} 18... d5 {[%clk 0:03:45.4]} 19. Bg3 {[%clk 0:02:31.1]}
19... Bd6 {[%clk 0:03:34.2]} 20. exd5 {[%clk 0:02:22.4]} 20... Bxd5 {[%clk
0:03:30.6]} 21. Nf4 {[%clk 0:02:18.7]} 21... Bb7 {[%clk 0:03:27.6]} 22. d4
{[%clk 0:02:06.2]} 22... Nc6 {[%clk 0:03:22.7]} 23. Nfe6 {[%clk 0:02:00.2]}
23... fxe6 {[%clk 0:03:16.7]} 24. Bxd6 {[%clk 0:01:55.8]} 24... Qxd6 {[%clk
0:03:15.3]} 25. Nxe6 {[%clk 0:01:55]} 25... Rf7 {[%clk 0:03:06.5]} 26. Rcd1
{[%clk 0:01:19.3]} 26... Nd8 {[%clk 0:03:04.1]} 27. d5 {[%clk 0:01:08.6]} 27...
Nxe6 {[%clk 0:03:00.8]} 28. fxe6 {[%clk 0:01:06.1]} 28... Re7 {[%clk 0:02:57.2]}
29. Qg5 {[%clk 0:01:03.7]} 29... Rf8 {[%clk 0:02:46.1]} 30. Rfe1 {[%clk
0:00:55.3]} 30... Bxd5 {[%clk 0:02:43]} 31. Re5 {[%clk 0:00:44.1]} 31... Qb6+
{[%clk 0:02:41.4]} 32. Kh1 {[%clk 0:00:38.6]} 32... Be4 {[%clk 0:02:29.2]} 33.
Rd7 {[%clk 0:00:30.8]} 33... Nxd7 {[%clk 0:01:57.3]} 34. Rxe4 {[%clk 0:00:20.2]}
34... Nf6 {[%clk 0:01:45.1]} 35. Re1 {[%clk 0:00:14.8]} 35... Rxe6 {[%clk
0:01:44.1]} 36. Rxe6 {[%clk 0:00:12.3]} 36... Qxe6 {[%clk 0:01:43.9]} 37. Kh2
{[%clk 0:00:09.9]} 37... Qd6+ {[%clk 0:01:39.3]} 0-1

[Event "Live Chess"]
[Site "Chess.com"]
[Date "2023.05.20"]
[Round "-"]
[White "Jeffaroow"]
[Black "terrub10"]
[Result "1-0"]
[WhiteElo "505"]
[BlackElo "570"]
[TimeControl "300"]
[EndTime "14:17:11 PDT"]
[Termination "Jeffaroow won by checkmate"]

1. e4 {[%clk 0:04:53]} 1... e5 {[%clk 0:04:58.6]} 2. Nf3 {[%clk 0:04:52]} 2...
Nc6 {[%clk 0:04:55]} 3. d4 {[%clk 0:04:51.1]} 3... Nf6 {[%clk 0:04:53.1]} 4.
dxe5 {[%clk 0:04:47]} 4... Nxe4 {[%clk 0:04:47.9]} 5. Bd3 {[%clk 0:04:31.2]}
5... Bc5 {[%clk 0:04:40.2]} 6. Bxe4 {[%clk 0:04:28.9]} 6... Nxe5 {[%clk
0:04:35.7]} 7. Nxe5 {[%clk 0:04:27]} 7... c6 {[%clk 0:04:32]} 8. Nc3 {[%clk
0:04:16.8]} 8... d5 {[%clk 0:04:27.1]} 9. Bf3 {[%clk 0:04:10.6]} 9... Bd6 {[%clk
0:04:11.9]} 10. Nd3 {[%clk 0:04:03.2]} 10... Bf5 {[%clk 0:04:04.6]} 11. O-O
{[%clk 0:03:57.8]} 11... c5 {[%clk 0:03:59.2]} 12. Nxd5 {[%clk 0:03:52.6]} 12...
c4 {[%clk 0:03:55.7]} 13. N3f4 {[%clk 0:03:38.1]} 13... Bxf4 {[%clk 0:03:49.7]}
14. Bxf4 {[%clk 0:03:36.4]} 14... b5 {[%clk 0:03:33.6]} 15. Nc7+ {[%clk
0:03:34.5]} 15... Ke7 {[%clk 0:03:25.9]} 16. Nxa8 {[%clk 0:03:24.8]} 16... Qxd1
{[%clk 0:03:22.1]} 17. Raxd1 {[%clk 0:03:22.4]} 17... b4 {[%clk 0:03:19.1]} 18.
Rde1+ {[%clk 0:03:14.2]} 18... Kd7 {[%clk 0:03:16.4]} 19. Be4 {[%clk 0:03:04.1]}
19... b3 {[%clk 0:03:09.6]} 20. Bxf5+ {[%clk 0:03:01.4]} 20... Kc6 {[%clk
0:03:06.9]} 21. cxb3 {[%clk 0:02:56.8]} 21... Rxa8 {[%clk 0:03:01.2]} 22. Be4+
{[%clk 0:02:52.1]} 22... Kc5 {[%clk 0:02:58.5]} 23. Bxa8 {[%clk 0:02:50.9]}
23... cxb3 {[%clk 0:02:56.5]} 24. axb3 {[%clk 0:02:49.7]} 24... Kb4 {[%clk
0:02:54.9]} 25. Re3 {[%clk 0:02:48.2]} 25... a5 {[%clk 0:02:49.3]} 26. Rd1
{[%clk 0:02:42.4]} 26... a4 {[%clk 0:02:48.3]} 27. Rd4+ {[%clk 0:02:40.7]} 27...
Kb5 {[%clk 0:02:45.6]} 28. bxa4+ {[%clk 0:02:39.2]} 28... Kc5 {[%clk 0:02:43.9]}
29. Rd1 {[%clk 0:02:27.5]} 29... f6 {[%clk 0:02:38.5]} 30. Rc3+ {[%clk
0:02:21.1]} 30... Kb4 {[%clk 0:02:36.3]} 31. Rc7 {[%clk 0:02:14.5]} 31... g5
{[%clk 0:02:33.4]} 32. Bd6+ {[%clk 0:02:12.2]} 32... Kxa4 {[%clk 0:02:30.5]} 33.
Rxh7 {[%clk 0:02:10.9]} 33... Kb3 {[%clk 0:02:25]} 34. Rc7 {[%clk 0:02:07.2]}
34... Kxb2 {[%clk 0:02:23.5]} 35. Bf8 {[%clk 0:02:05.7]} 35... Kb3 {[%clk
0:02:21.8]} 36. Bf3 {[%clk 0:02:03.2]} 36... Kb2 {[%clk 0:02:20]} 37. Rd8 {[%clk
0:02:02.2]} 37... f5 {[%clk 0:02:17.3]} 38. Rb8+ {[%clk 0:02:02.1]} 38... Ka2
{[%clk 0:02:13.6]} 39. Ra7# {[%clk 0:02:02]} 1-0

[Event "Live Chess"]
[Site "Chess.com"]
[Date "2023.05.20"]
[Round "-"]
[White "grillage"]
[Black "Duke_of_Bebington"]
[Result "1-0"]
[WhiteElo "1846"]
[BlackElo "1580"]
[TimeControl "300"]
[EndTime "14:17:16 PDT"]
[Termination "grillage won by checkmate"]

1. d4 {[%clk 0:04:59.1]} 1... d5 {[%clk 0:04:58]} 2. Nf3 {[%clk 0:04:57.6]} 2...
Nf6 {[%clk 0:04:55.8]} 3. c4 {[%clk 0:04:56.1]} 3... c6 {[%clk 0:04:54.6]} 4.
Qc2 {[%clk 0:04:54.2]} 4... dxc4 {[%clk 0:04:46.1]} 5. Qxc4 {[%clk 0:04:52.1]}
5... Be6 {[%clk 0:04:44.9]} 6. Qb4 {[%clk 0:04:43.4]} 6... Qb6 {[%clk
0:04:41.3]} 7. Qxb6 {[%clk 0:04:33.8]} 7... axb6 {[%clk 0:04:41.2]} 8. Nc3
{[%clk 0:04:32.5]} 8... g6 {[%clk 0:04:38.4]} 9. Ng5 {[%clk 0:04:30.7]} 9... Bf5
{[%clk 0:04:30.1]} 10. e4 {[%clk 0:04:28.5]} 10... Bd7 {[%clk 0:04:26.7]} 11.
Bc4 {[%clk 0:04:25.4]} 11... e6 {[%clk 0:04:21.6]} 12. O-O {[%clk 0:04:20.4]}
12... Bg7 {[%clk 0:04:19.6]} 13. e5 {[%clk 0:04:10.9]} 13... Nd5 {[%clk
0:04:17.1]} 14. Nge4 {[%clk 0:03:54.7]} 14... O-O {[%clk 0:04:14.3]} 15. Nd6
{[%clk 0:03:49.9]} 15... Na6 {[%clk 0:04:07.2]} 16. Nxb7 {[%clk 0:03:41.9]}
16... c5 {[%clk 0:03:45.1]} 17. Nd6 {[%clk 0:03:37.2]} 17... cxd4 {[%clk
0:03:39.8]} 18. Ncb5 {[%clk 0:03:30.3]} 18... Bxe5 {[%clk 0:03:28.4]} 19. Bh6
{[%clk 0:03:15.6]} 19... Rfd8 {[%clk 0:03:20.9]} 20. Ne4 {[%clk 0:03:07]} 20...
Nc5 {[%clk 0:02:58.7]} 21. Nxc5 {[%clk 0:02:58.2]} 21... bxc5 {[%clk 0:02:57.3]}
22. Bxd5 {[%clk 0:02:51.2]} 22... exd5 {[%clk 0:02:55.5]} 23. f4 {[%clk
0:02:45.6]} 23... Bxb5 {[%clk 0:02:51.1]} 24. fxe5 {[%clk 0:02:36.5]} 24... Bxf1
{[%clk 0:02:49.5]} 25. Kxf1 {[%clk 0:02:33.6]} 25... Rab8 {[%clk 0:02:38.4]} 26.
b3 {[%clk 0:02:31.8]} 26... c4 {[%clk 0:02:35.9]} 27. Bg5 {[%clk 0:02:29.8]}
27... Re8 {[%clk 0:02:29.2]} 28. Bf6 {[%clk 0:02:28.1]} 28... d3 {[%clk
0:02:25.3]} 29. Ke1 {[%clk 0:02:21.7]} 29... Rec8 {[%clk 0:02:24]} 30. Kd2
{[%clk 0:02:12.2]} 30... Kf8 {[%clk 0:02:19.4]} 31. Rc1 {[%clk 0:02:07.7]} 31...
Ke8 {[%clk 0:02:17]} 32. Rc3 {[%clk 0:01:56.2]} 32... Kd7 {[%clk 0:02:11.7]} 33.
g4 {[%clk 0:01:53.9]} 33... Ke6 {[%clk 0:02:10]} 34. h4 {[%clk 0:01:51.6]} 34...
Ra8 {[%clk 0:02:04.9]} 35. a4 {[%clk 0:01:43]} 35... cxb3 {[%clk 0:02:00]} 36.
Rxb3 {[%clk 0:01:42.2]} 36... Rxa4 {[%clk 0:01:55.4]} 37. Rb6+ {[%clk
0:01:38.6]} 37... Kd7 {[%clk 0:01:53.4]} 38. Rb7+ {[%clk 0:01:34.9]} 38... Rc7
{[%clk 0:01:52.2]} 39. Rb6 {[%clk 0:01:27.7]} 39... Rd4 {[%clk 0:01:37.2]} 40.
Rd6+ {[%clk 0:01:25.1]} 40... Ke8 {[%clk 0:01:35.4]} 41. Rd8# {[%clk 0:01:23.7]}
1-0

[Event "Live Chess"]
[Site "Chess.com"]
[Date "2023.05.20"]
[Round "-"]
[White "Singapourfeuj"]
[Black "CameronM1234"]
[Result "1-0"]
[WhiteElo "2252"]
[BlackElo "1130"]
[TimeControl "300"]
[EndTime "14:17:34 PDT"]
[Termination "Singapourfeuj won by resignation"]

1. d4 {[%clk 0:04:56.4]} 1... Nf6 {[%clk 0:04:58]} 2. Nc3 {[%clk 0:04:52.9]}
2... g6 {[%clk 0:04:57]} 3. e4 {[%clk 0:04:48.7]} 3... d6 {[%clk 0:04:53.2]} 4.
Be2 {[%clk 0:04:46.6]} 4... Bg7 {[%clk 0:04:51.8]} 5. Nf3 {[%clk 0:04:44.5]}
5... h6 {[%clk 0:04:44]} 6. O-O {[%clk 0:04:42.7]} 6... O-O {[%clk 0:04:42.6]}
7. a4 {[%clk 0:04:40.9]} 7... Re8 {[%clk 0:04:37.3]} 8. a5 {[%clk 0:04:36.7]}
8... a6 {[%clk 0:04:36]} 9. h3 {[%clk 0:04:34.1]} 9... e5 {[%clk 0:04:34.8]} 10.
d5 {[%clk 0:04:33.2]} 10... c6 {[%clk 0:04:33.2]} 11. Be3 {[%clk 0:04:28.6]}
11... Nbd7 {[%clk 0:04:16.5]} 12. Nd2 {[%clk 0:04:23.6]} 12... cxd5 {[%clk
0:04:13.7]} 13. exd5 {[%clk 0:04:22.1]} 13... Nc5 {[%clk 0:04:08.6]} 14. Nc4
{[%clk 0:04:19.4]} 14... Nfe4 {[%clk 0:03:58.5]} 15. Na4 {[%clk 0:04:12.7]}
15... Nxa4 {[%clk 0:03:47.4]} 16. Rxa4 {[%clk 0:03:56]} 16... Bd7 {[%clk
0:03:25.2]} 17. Rb4 {[%clk 0:03:54.6]} 17... Nc5 {[%clk 0:03:07.2]} 18. Bxc5
{[%clk 0:03:39.8]} 18... dxc5 {[%clk 0:03:07.1]} 19. Rxb7 {[%clk 0:03:38.5]}
19... Qc8 {[%clk 0:02:37.6]} 20. Nd6 {[%clk 0:03:34.9]} 20... Qd8 {[%clk
0:02:27.4]} 21. Nxe8 {[%clk 0:03:33.6]} 21... Qxe8 {[%clk 0:02:23.9]} 22. Bc4
{[%clk 0:03:30.8]} 22... Bb5 {[%clk 0:02:17.2]} 23. Bxb5 {[%clk 0:03:26.8]}
23... axb5 {[%clk 0:02:16.3]} 24. d6 {[%clk 0:03:25.6]} 24... Rd8 {[%clk
0:02:10.2]} 25. Qd5 {[%clk 0:03:21.1]} 25... Rd7 {[%clk 0:01:42.4]} 26. a6
{[%clk 0:03:19.4]} 26... Bf8 {[%clk 0:01:30.9]} 27. Rxd7 {[%clk 0:03:16]} 27...
Qxd7 {[%clk 0:01:30.2]} 28. Rd1 {[%clk 0:03:14.9]} 28... Qa7 {[%clk 0:01:23.3]}
29. Qb7 {[%clk 0:03:07.1]} 1-0

[Event "Live Chess"]
[Site "Chess.com"]
[Date "2023.05.20"]
[Round "-"]
[White "LiamClery2020"]
[Black "chessfiction"]
[Result "1-0"]
[WhiteElo "2086"]
[BlackElo "2362"]
[TimeControl "300"]
[EndTime "14:18:01 PDT"]
[Termination "LiamClery2020 won by resignation"]

1. e4 {[%clk 0:04:59.1]} 1... d6 {[%clk 0:04:58.4]} 2. d4 {[%clk 0:04:58.2]}
2... Nf6 {[%clk 0:04:58.3]} 3. Nc3 {[%clk 0:04:56.5]} 3... c6 {[%clk 0:04:57.8]}
4. Be3 {[%clk 0:04:56]} 4... Qb6 {[%clk 0:04:56.5]} 5. Qd2 {[%clk 0:04:54.2]}
5... Qxb2 {[%clk 0:04:54.2]} 6. Rb1 {[%clk 0:04:51.2]} 6... Qa3 {[%clk
0:04:52.6]} 7. Rb3 {[%clk 0:04:46.6]} 7... Qa5 {[%clk 0:04:50.9]} 8. Nf3 {[%clk
0:04:46.1]} 8... Nbd7 {[%clk 0:04:42.9]} 9. Bc4 {[%clk 0:04:44.7]} 9... e6
{[%clk 0:04:38.6]} 10. O-O {[%clk 0:04:43.1]} 10... d5 {[%clk 0:04:37.5]} 11.
exd5 {[%clk 0:04:42]} 11... exd5 {[%clk 0:04:36.3]} 12. Bd3 {[%clk 0:04:37.8]}
12... Bb4 {[%clk 0:04:35.7]} 13. Rfb1 {[%clk 0:04:31.5]} 13... Bxc3 {[%clk
0:04:33.7]} 14. Rxc3 {[%clk 0:04:31.4]} 14... O-O {[%clk 0:04:31.1]} 15. Rbb3
{[%clk 0:04:29.4]} 15... Re8 {[%clk 0:04:25.7]} 16. Ng5 {[%clk 0:04:27.4]} 16...
h6 {[%clk 0:04:24]} 17. Nh3 {[%clk 0:04:25.3]} 17... Ne4 {[%clk 0:04:22.7]} 18.
Bxe4 {[%clk 0:04:24.4]} 18... Rxe4 {[%clk 0:04:22.6]} 19. Qe2 {[%clk 0:04:20]}
19... Nf6 {[%clk 0:04:19.7]} 20. Nf4 {[%clk 0:04:18.4]} 20... Bf5 {[%clk
0:04:15.6]} 21. Qf3 {[%clk 0:04:15.5]} 21... Rae8 {[%clk 0:04:14]} 22. Nh5
{[%clk 0:04:11.5]} 22... Nxh5 {[%clk 0:04:03.3]} 23. Qxf5 {[%clk 0:04:09.6]}
23... Rxd4 {[%clk 0:03:58.5]} 24. h3 {[%clk 0:03:59.2]} 24... Rd1+ {[%clk
0:03:55.3]} 25. Kh2 {[%clk 0:03:57.6]} 25... Nf6 {[%clk 0:03:32.1]} 26. Bxh6
{[%clk 0:03:55.3]} 26... Ne4 {[%clk 0:03:13.5]} 27. Rxb7 {[%clk 0:03:44.9]}
27... Rf8 {[%clk 0:03:04.5]} 28. Bxg7 {[%clk 0:03:14.6]} 28... Kxg7 {[%clk
0:02:58.1]} 29. Qe5+ {[%clk 0:03:09.3]} 29... Kh7 {[%clk 0:02:53.7]} 30. Qh5+
{[%clk 0:03:06.3]} 30... Kg7 {[%clk 0:02:51.4]} 31. Qe5+ {[%clk 0:02:54.6]}
31... Kh6 {[%clk 0:02:44.1]} 32. Rxc6+ {[%clk 0:02:47.2]} 32... f6 {[%clk
0:02:43.5]} 33. Qf4+ {[%clk 0:02:41.1]} 33... Kg6 {[%clk 0:02:40.6]} 34. Qg4+
{[%clk 0:02:22.1]} 34... Ng5 {[%clk 0:02:36.6]} 35. Qxd1 {[%clk 0:02:16.4]}
35... Qa4 {[%clk 0:02:36.1]} 36. Qd3+ {[%clk 0:02:14.9]} 36... Ne4 {[%clk
0:02:32.9]} 37. Rcc7 {[%clk 0:02:01.4]} 37... Rg8 {[%clk 0:02:24.4]} 38. Qxd5
{[%clk 0:01:56.1]} 38... Nxf2 {[%clk 0:02:15.5]} 39. Qxg8+ {[%clk 0:01:54.1]}
39... Kf5 {[%clk 0:02:13.5]} 40. Rc5+ {[%clk 0:01:51.2]} 40... Ke4 {[%clk
0:02:12.2]} 41. Rc4+ {[%clk 0:01:46.6]} 1-0

[Event "Live Chess"]
[Site "Chess.com"]
[Date "2023.05.20"]
[Round "-"]
[White "Nazar_777"]
[Black "lightningorderyt"]
[Result "1-0"]
[WhiteElo "1608"]
[BlackElo "520"]
[TimeControl "300"]
[EndTime "14:18:05 PDT"]
[Termination "Nazar_777 won by checkmate"]

1. e3 {[%clk 0:04:59.3]} 1... e5 {[%clk 0:04:59.6]} 2. h4 {[%clk 0:04:52.9]}
2... Nf6 {[%clk 0:04:58.7]} 3. a3 {[%clk 0:04:52.5]} 3... Nc6 {[%clk 0:04:55.2]}
4. c4 {[%clk 0:04:51.9]} 4... d5 {[%clk 0:04:49]} 5. cxd5 {[%clk 0:04:50.9]}
5... Qxd5 {[%clk 0:04:46.3]} 6. Nf3 {[%clk 0:04:50]} 6... Bg4 {[%clk 0:04:31.4]}
7. Nc3 {[%clk 0:04:48.4]} 7... Qc5 {[%clk 0:04:05]} 8. b4 {[%clk 0:04:47]} 8...
Qd6 {[%clk 0:03:56.5]} 9. Be2 {[%clk 0:04:45.7]} 9... O-O-O {[%clk 0:03:34.2]}
10. Bb2 {[%clk 0:04:43.6]} 10... e4 {[%clk 0:03:23.9]} 11. Ng5 {[%clk
0:04:41.6]} 11... Ne5 {[%clk 0:02:56.6]} 12. Bxg4+ {[%clk 0:04:34.4]} 12... Qe6
{[%clk 0:02:46.5]} 13. Bxe6+ {[%clk 0:04:32]} 13... fxe6 {[%clk 0:02:40.5]} 14.
Nxe6 {[%clk 0:04:29.4]} 14... Re8 {[%clk 0:02:30]} 15. Nxf8 {[%clk 0:04:27.9]}
15... Rhxf8 {[%clk 0:02:28]} 16. Qc2 {[%clk 0:04:27.2]} 16... Nc4 {[%clk
0:02:05.9]} 17. Rc1 {[%clk 0:04:24.6]} 17... b6 {[%clk 0:01:42.3]} 18. Nxe4
{[%clk 0:04:21.9]} 18... Nxe4 {[%clk 0:01:38.4]} 19. Qxc4 {[%clk 0:04:18.9]}
19... Re5 {[%clk 0:01:33.4]} 20. Qxc7# {[%clk 0:04:16.1]} 1-0

[Event "Live Chess"]
[Site "Chess.com"]
[Date "2023.05.20"]
[Round "-"]
[White "Tushinskiy"]
[Black "stevochess11"]
[Result "1-0"]
[WhiteElo "2148"]
[BlackElo "1785"]
[TimeControl "300"]
[EndTime "14:18:33 PDT"]
[Termination "Tushinskiy won by resignation"]

1. d4 {[%clk 0:04:57]} 1... Nf6 {[%clk 0:04:58.4]} 2. c3 {[%clk 0:04:56.9]} 2...
c6 {[%clk 0:04:56.7]} 3. Nf3 {[%clk 0:04:56.8]} 3... d6 {[%clk 0:04:54.7]} 4.
Bf4 {[%clk 0:04:56.2]} 4... g6 {[%clk 0:04:53.8]} 5. Bg3 {[%clk 0:04:56.1]} 5...
Bg7 {[%clk 0:04:52.7]} 6. Nbd2 {[%clk 0:04:50.9]} 6... Nbd7 {[%clk 0:04:51]} 7.
e4 {[%clk 0:04:50]} 7... b5 {[%clk 0:04:46.5]} 8. Bd3 {[%clk 0:04:48.4]} 8... a5
{[%clk 0:04:40.5]} 9. Qe2 {[%clk 0:04:47.5]} 9... Bb7 {[%clk 0:04:38.9]} 10. e5
{[%clk 0:04:46.9]} 10... Nd5 {[%clk 0:04:34.2]} 11. exd6 {[%clk 0:04:44.1]}
11... e6 {[%clk 0:04:07.4]} 12. Ne4 {[%clk 0:04:39]} 12... O-O {[%clk
0:04:05.4]} 13. Nc5 {[%clk 0:04:38]} 13... Nxc5 {[%clk 0:04:03.3]} 14. dxc5
{[%clk 0:04:37.9]} 14... Nxc3 {[%clk 0:04:00.5]} 15. bxc3 {[%clk 0:04:36.9]}
15... Bxc3+ {[%clk 0:03:59.7]} 16. Nd2 {[%clk 0:04:36.3]} 16... Bxa1 {[%clk
0:03:58]} 17. O-O {[%clk 0:04:35.5]} 17... Bc3 {[%clk 0:03:55.2]} 18. h4 {[%clk
0:04:31.6]} 18... Bb4 {[%clk 0:03:50.4]} 19. Rc1 {[%clk 0:04:26.6]} 19... Qf6
{[%clk 0:03:42.8]} 20. Ne4 {[%clk 0:04:23.6]} 20... Qd4 {[%clk 0:03:24]} 21. Bf4
{[%clk 0:04:21.9]} 21... Rfd8 {[%clk 0:03:19.1]} 22. Be3 {[%clk 0:04:19.6]}
22... Qg7 {[%clk 0:03:09.8]} 23. Bg5 {[%clk 0:04:18.2]} 23... Rd7 {[%clk
0:03:07.7]} 24. Nf6+ {[%clk 0:04:16.7]} 24... Kh8 {[%clk 0:02:57.2]} 25. Nxd7
{[%clk 0:04:15.3]} 25... Qd4 {[%clk 0:02:47.3]} 26. Bf6+ {[%clk 0:04:13.1]} 1-0

[Event "Live Chess"]
[Site "Chess.com"]
[Date "2023.05.20"]
[Round "-"]
[White "ChessTWSS"]
[Black "smoggyrabbit"]
[Result "0-1"]
[WhiteElo "1511"]
[BlackElo "1706"]
[TimeControl "300"]
[EndTime "14:19:10 PDT"]
[Termination "smoggyrabbit won by resignation"]

1. d4 {[%clk 0:04:57.7]} 1... e6 {[%clk 0:04:59.1]} 2. Bf4 {[%clk 0:04:56.5]}
2... f5 {[%clk 0:04:56.6]} 3. e3 {[%clk 0:04:55.3]} 3... Nf6 {[%clk 0:04:55.8]}
4. c3 {[%clk 0:04:54.2]} 4... Be7 {[%clk 0:04:53.9]} 5. Nf3 {[%clk 0:04:52.7]}
5... O-O {[%clk 0:04:51.9]} 6. Bd3 {[%clk 0:04:50.3]} 6... b6 {[%clk 0:04:51.2]}
7. Nbd2 {[%clk 0:04:49.2]} 7... Bb7 {[%clk 0:04:50.3]} 8. O-O {[%clk 0:04:46.2]}
8... Ne4 {[%clk 0:04:47.6]} 9. Qe2 {[%clk 0:04:32.4]} 9... g5 {[%clk 0:03:48.5]}
10. Bxe4 {[%clk 0:04:08.8]} 10... fxe4 {[%clk 0:03:46.2]} 11. Nxg5 {[%clk
0:04:02.6]} 11... Bxg5 {[%clk 0:03:39.6]} 12. Bxg5 {[%clk 0:04:01.6]} 12... Qxg5
{[%clk 0:03:37.9]} 13. g3 {[%clk 0:03:33.4]} 13... d5 {[%clk 0:03:35.1]} 14. h4
{[%clk 0:03:30.9]} 14... Qg6 {[%clk 0:03:30.8]} 15. g4 {[%clk 0:03:25.1]} 15...
Nd7 {[%clk 0:03:27.5]} 16. h5 {[%clk 0:03:22.9]} 16... Qg5 {[%clk 0:03:24.9]}
17. f4 {[%clk 0:03:14.1]} 17... exf3 {[%clk 0:03:23.5]} 18. Nxf3 {[%clk
0:03:13.4]} 18... Qxg4+ {[%clk 0:03:22.4]} 19. Qg2 {[%clk 0:03:07.7]} 19... Nf6
{[%clk 0:03:12.1]} 20. Qxg4+ {[%clk 0:02:58.5]} 20... Nxg4 {[%clk 0:03:12]} 21.
Ne5 {[%clk 0:02:49.1]} 21... Nxe3 {[%clk 0:03:01]} 22. Rxf8+ {[%clk 0:02:44.2]}
22... Rxf8 {[%clk 0:02:59.1]} 23. Nd7 {[%clk 0:02:37.5]} 23... Rf5 {[%clk
0:02:51.8]} 24. h6 {[%clk 0:02:20.2]} 24... Ng4 {[%clk 0:02:35.3]} 25. b3 {[%clk
0:02:15.2]} 25... Bc8 {[%clk 0:02:30.5]} 26. c4 {[%clk 0:02:15.1]} 26... Bxd7
{[%clk 0:02:29.1]} 27. cxd5 {[%clk 0:02:14.1]} 27... exd5 {[%clk 0:02:28]} 28.
Rf1 {[%clk 0:02:12.8]} 28... Rxf1+ {[%clk 0:02:25.7]} 29. Kxf1 {[%clk
0:02:12.7]} 0-1